bitfinex-derivatives/quotes_SOLF0:USTF0_20241024
["timestamp","ask_amount","ask_price","bid_price","bid_amount"]
[1729780820035,14.95516721,176.72,176.64,5.56]
[1729780820237,1.2515,176.71,176.64,5.56]
[1729780820736,2.832,176.7,176.66,2.8326]
[1729780821136,1.2515,176.71,176.64,5.56]
[1729780821342,16.12116721,176.74,176.66,2.8325]
[1729780821540,16.12116721,176.74,176.65,14.95516721]
[1729780821745,2.8318,176.71,176.64,8.3929]
[1729780822047,16.12116721,176.74,176.64,5.56]
[1729780822242,1.166,176.74,176.65,14.95516721]
[1729780822441,1.166,176.74,176.68,14.95516721]
[1729780823339,1.166,176.74,176.65,14.95516721]
[1729780823545,1.166,176.74,176.66,1.41666162]
[1729780823843,2.8315,176.73,176.68,2.8322]
[1729780826446,5.6589,176.87,176.72,2.8315]
[1729780826646,1.2614,176.8,176.71,5.56]
[1729780826841,14.95516721,176.77,176.71,5.56]
[1729780827145,2.8316,176.73,176.68,5.56]
[1729780827740,2.8316,176.73,176.69,2.8321]
[1729780827935,2.8312,176.76,176.69,14.95516721]
[1729780828342,14.95516721,176.79,176.73,2.8314]
[1729780828540,2.831,176.77,176.73,2.8314]
[1729780828742,2.831,176.77,176.69,14.95516721]
[1729780828743,14.95516721,176.79,176.69,14.95516721]
[1729780829250,2.831,176.76,176.69,14.95516721]
[1729780829754,2.831,176.76,176.72,2.8316]
[1729780831248,14.95516721,176.79,176.66,4.12302012]
[1729780831249,2.8306,176.79,176.75,2.8311]
[1729780831554,14.95516721,176.98,176.78,14.95516721]
[1729780831748,2.8282,176.95,176.89,2.8289]
[1729780831939,3.04741722,177.0,176.92,14.95516721]
[1729780832245,2.8266,177.05,176.92,2.77832714]
[1729780832444,14.95516721,177.09,176.98,14.95516721]
[1729780832652,1.2518,177.1,176.98,14.95516721]
[1729780832951,1.2518,177.1,176.99,5.56]
[1729780832952,2.8266,177.04,176.99,5.56]
[1729780833247,1.2518,177.1,176.99,5.56]
[1729780833455,1.2518,177.1,177.0,14.95516721]
[1729780833953,16.18276721,177.12,176.91,6.38522058]
[1729780833954,14.95516721,177.14,177.03,14.95516721]
[1729780834151,2.8263,177.06,177.01,14.95516721]
[1729780834347,25.1307426,177.12,177.02,5.56]
[1729780834557,2.8257,177.1,177.03,5.56]
[1729780834748,5.56,177.2,177.03,5.56]
[1729780834947,1.2708,177.17,177.03,5.56]
[1729780835151,2.8258,177.09,177.03,5.56]
[1729780835353,1.2708,177.17,177.02,23.8789426]
[1729780835653,2.8261,177.07,177.03,5.56]
[1729780835853,23.8789426,177.15,177.04,5.56]
[1729780836544,23.8789426,177.15,177.05,5.56]
[1729780836746,23.8789426,177.15,177.06,5.56]
[1729780837053,1.2708,177.17,177.07,23.8789426]
[1729780837250,286.98042597,177.27,177.0,26.7201585]
[1729780837251,5.643,177.37,177.1,23.8789426]
[1729780837463,5.643,177.37,177.04,23.8789426]
[1729780837464,23.8789426,177.19,177.04,23.8789426]
[1729780837748,23.8789426,177.19,176.83,2.79620007]
[1729780837749,23.8789426,177.16,177.0,23.8789426]
[1729780837954,2.8263,177.06,176.98,5.56]
[1729780838155,2.4577,177.15,176.99,29.4389426]
[1729780838156,26.3366426,177.15,176.99,29.4389426]
[1729780838449,2.8264,177.06,177.0,5.56]
[1729780838951,5.56,177.14,177.0,5.56]
[1729780839156,2.8258,177.09,177.01,2.827]
[1729780839350,2.4577,177.15,177.0,5.56]
[1729780839550,23.8789426,177.13,176.93,343.0]
[1729780839748,5.56,177.12,176.97,23.8789426]
[1729780840253,5.56,177.12,176.98,5.56]
[1729780840653,5.56,177.12,176.97,23.8789426]
[1729780840852,5.56,177.12,176.98,5.56]
[1729780841654,5.56,177.12,176.99,5.56]
[1729780841855,2.8263,177.06,176.99,5.56]
[1729780842054,5.56,177.12,176.99,5.56]
[1729780842456,5.56,177.12,176.97,26.7065426]
[1729780842653,23.8789426,177.11,176.98,5.56]
[1729780842959,23.8789426,177.08,176.94,29.4389426]
[1729780843163,6.7445,177.07,176.94,29.4389426]
[1729780843358,2.8267,177.04,176.94,29.4389426]
[1729780843553,6.7445,177.07,176.94,29.4389426]
[1729780844054,23.8789426,177.05,176.92,61.1]
[1729780844259,23.8789426,177.02,176.93,1.4141984]
[1729780844558,23.8789426,177.02,176.8,360.07]
[1729780844559,23.8789426,176.96,176.84,5.56]
[1729780844756,23.8789426,176.93,176.82,5.56]
[1729780844964,2.8293,176.87,176.83,1.41462632]
[1729780845160,1.2695,176.92,176.8,2.26340211]
[1729780845362,1.2695,176.92,176.81,6.97497403]
[1729780845663,1.1976,176.95,176.85,23.8789426]
[1729780845959,1.1976,176.95,176.86,5.56]
[1729780846360,1.1976,176.95,176.83,1.41480298]
[1729780846557,1.1976,176.95,176.84,6.97480298]
[1729780846765,2.8283,176.94,176.85,1.41480298]
[1729780847061,1.1976,176.95,176.86,1.41480298]
[1729780847357,1.1976,176.95,176.82,23.8789426]
[1729780847556,1.1976,176.95,176.86,5.56]
[1729780848156,2.8284,176.93,176.86,5.56]
[1729780849768,25.0765426,176.95,176.83,1.4147429]
[1729780849959,23.8789426,176.89,176.76,8.6986337]
[1729780850263,2.8299,176.83,176.76,4.2457429]
[1729780850464,23.8789426,176.86,176.75,1.4147429]
[1729780850650,23.8789426,176.83,176.75,1.4147429]
[1729780850963,2.8313,176.75,176.7,5.76]
[1729780851160,23.8789426,176.8,176.7,5.76]
[1729780851354,23.8789426,176.8,176.69,7.17565687]
[1729780851355,2.8309,176.77,176.69,7.17565687]
[1729780851554,23.8789426,176.8,176.69,7.17565687]
[1729780851758,1.1848,176.82,176.69,5.76]
[1729780851960,2.8309,176.77,176.69,7.17565687]
[1729780852152,23.8789426,176.8,176.69,7.17565687]
[1729780852460,23.8789426,176.8,176.68,1.41565687]
[1729780852761,1.1848,176.82,176.7,23.8789426]
[1729780852958,2.8312,176.75,176.71,5.76]
[1729780853157,2.8312,176.75,176.68,1.41576221]
[1729780853357,23.8789426,176.8,176.68,1.41576221]
[1729780853555,5.76,176.79,176.68,1.41576221]
[1729780853760,23.8789426,176.77,176.64,3.68121634]
[1729780854064,23.8789426,176.75,176.64,1.41576221]
[1729780854258,23.8789426,176.75,176.62,1.41576221]
[1729780854564,2.8326,176.67,176.59,2.8337]
[1729780854858,23.8789426,176.72,176.58,25.2955076]
[1729780855059,23.8789426,176.72,176.59,1.416565]
[1729780855258,23.8789426,176.72,176.59,7.176565]
[1729780855453,1.1765,176.71,176.59,29.6389426]
[1729780855661,2.8326,176.67,176.6,4.250165]
[1729780855857,1.1765,176.71,176.6,4.250165]
[1729780856057,1.1765,176.71,176.6,1.416565]
[1729780856265,2.8332,176.63,176.56,9.44342862]
[1729780856562,2.8332,176.63,176.57,1.41670331]
[1729780856760,2.8338,176.59,176.56,1.41670331]
[1729780856965,5.76,176.67,176.55,23.8789426]
[1729780857154,5.76,176.67,176.56,1.41670331]
[1729780857356,5.76,176.69,176.56,1.41670331]
[1729780858157,23.8789426,176.68,176.56,1.41670331]
[1729780858455,2.8336,176.61,176.54,4.25130331]
[1729780858660,23.8789426,176.68,176.54,7.17670331]
[1729780858864,23.8789426,176.65,176.54,7.17670331]
[1729780859158,23.8789426,176.65,176.53,5.78]
[1729780859159,5.78,176.64,176.53,5.78]
[1729780859556,2.8335,176.61,176.53,32.4936426]
[1729780859761,5.78,176.64,176.53,5.78]
[1729780860560,2.834,176.58,176.52,5.78]
[1729780860762,29.6589426,176.64,176.52,5.78]
[1729780860961,1.1711,176.63,176.52,5.78]
[1729780861254,1.1711,176.63,176.52,29.6589426]
[1729780862868,2.834,176.58,176.52,29.6589426]
[1729780863164,1.1711,176.63,176.52,29.6589426]
[1729780863360,2.8335,176.61,176.53,2.8347]
[1729780863559,1.1711,176.63,176.55,23.8789426]
[1729780864068,2.8338,176.6,176.55,29.6589426]
[1729780864572,2.8338,176.6,176.55,5.78]
[1729780864964,23.8789426,176.7,176.58,23.8789426]
[1729780865260,1.1765,176.71,176.61,23.8789426]
[1729780865563,2.8323,176.68,176.61,29.6589426]
[1729780865763,1.1765,176.71,176.61,29.6589426]
[1729780866260,1.2244,176.73,176.64,23.8789426]
[1729780866473,1.2244,176.73,176.61,29.6589426]
[1729780867470,25.1033426,176.73,176.61,29.6589426]
[1729780867666,25.1033426,176.73,176.62,5.78]
[1729780867868,23.8789426,176.71,176.6,5.78]
[1729780868367,2.8331,176.64,176.57,2.8341]
[1729780868667,2.8331,176.64,176.56,23.8789426]
[1729780868668,1.2262,176.7,176.58,5.78]
[1729780868861,1.2262,176.7,176.56,23.8789426]
[1729780869065,1.2262,176.7,176.49,61.08]
[1729780869066,23.8789426,176.68,176.49,61.08]
[1729780869273,23.8789426,176.64,176.5,29.6589426]
[1729780869458,23.8789426,176.64,176.51,2.8349]
[1729780869666,1.2741,176.63,176.51,2.8349]
[1729780869864,1.2741,176.63,176.5,29.6589426]
[1729780870166,1.1876,176.69,176.54,23.8789426]
[1729780870361,1.2741,176.68,176.55,5.78]
[1729780870565,1.2741,176.68,176.57,23.8789426]
[1729780870965,2.8335,176.61,176.55,29.6589426]
[1729780871267,23.8789426,176.67,176.55,5.78]
[1729780871461,1.2741,176.68,176.55,29.6589426]
[1729780871661,1.2741,176.68,176.58,23.8789426]
[1729780872168,2.8331,176.64,176.58,23.8789426]
[1729780872369,1.2741,176.68,176.58,23.8789426]
[1729780872567,61.08,176.8,176.61,23.8789426]
[1729780872769,1.1675,176.74,176.63,23.8789426]
[1729780872977,1.1675,176.74,176.63,29.6589426]
[1729780873274,1.1675,176.74,176.63,5.78]
[1729780873275,2.8324,176.68,176.63,5.78]
[1729780873467,23.8789426,176.71,176.59,5.78]
[1729780874368,2.8334,176.62,176.59,5.78]
[1729780874566,23.8789426,176.68,176.52,23.8789426]
[1729780874769,1.2664,176.67,176.53,5.78]
[1729780875074,2.8332,176.63,176.55,2.8343]
[1729780875375,1.2664,176.67,176.55,2.8343]
[1729780875768,2.8334,176.62,176.55,2.8343]
[1729780876469,2.8335,176.61,176.55,2.8343]
[1729780876864,1.2664,176.67,176.55,23.8789426]
[1729780877574,2.8332,176.63,176.57,2.8341]
[1729780877770,1.2664,176.67,176.58,5.94]
[1729780878070,2.8324,176.68,176.63,2.833]
[1729780878269,2.8324,176.68,176.61,23.8789426]
[1729780878769,1.2123,176.73,176.61,23.8789426]
[1729780879369,23.8789426,176.71,176.58,23.8789426]
[1729780879568,23.8789426,176.71,176.59,5.94]
[1729780879768,1.2123,176.73,176.53,23.8789426]
[1729780879769,2.8331,176.64,176.53,23.8789426]
[1729780879973,23.8789426,176.68,176.54,5.94]
[1729780880172,23.8789426,176.68,176.56,2.8341]
[1729780880476,2.8334,176.62,176.56,23.8789426]
[1729780880678,23.8789426,176.68,176.56,23.8789426]
[1729780881375,2.8336,176.61,176.56,23.8789426]
[1729780882273,2.8336,176.61,176.56,26.7131426]
[1729780883674,2.8341,176.58,176.55,5.94]
[1729780884271,2.8341,176.57,176.55,5.94]
[1729780885382,2.8343,176.56,176.55,5.94]
[1729780885580,23.8789426,176.65,176.55,5.94]
[1729780885780,2.8341,176.58,176.55,5.94]
[1729780886171,25.1009426,176.65,176.55,5.94]
[1729780886376,1.1885,176.64,176.55,5.94]
[1729780887182,1.1885,176.64,176.53,2.8346]
[1729780887382,1.1885,176.64,176.53,8.7746]
[1729780887978,2.8341,176.58,176.53,8.7746]
[1729780888979,2.8341,176.57,176.53,8.7746]
[1729780889181,1.1885,176.64,176.53,8.7746]
[1729780889374,1.222,176.65,176.53,29.8189426]
[1729780889575,2.8338,176.59,176.53,29.8189426]
[1729780889992,1.222,176.65,176.53,29.8189426]
[1729780890388,1.2328,176.66,176.56,23.8789426]
[1729780890582,1.2608,176.71,176.59,23.8789426]
[1729780890782,2.8323,176.68,176.62,23.8789426]
[1729780890982,2.8323,176.68,176.62,29.8189426]
[1729780891177,2.8323,176.68,176.63,2.833]
[1729780891377,5.94,176.75,176.62,29.8189426]
[1729780891575,7.2008,176.75,176.62,29.8189426]
[1729780891981,2.8322,176.69,176.62,29.8189426]
[1729780892182,2.8322,176.69,176.64,2.8329]
[1729780892379,7.2008,176.75,176.64,2.8329]
[1729780892689,7.2008,176.75,176.62,29.8189426]
[1729780893078,7.2008,176.75,176.65,23.8789426]
[1729780893281,1.2608,176.75,176.65,23.8789426]
[1729780893483,2.8318,176.72,176.67,2.8324]
[1729780893684,2.8318,176.72,176.67,8.7724]
[1729780894177,2.8318,176.72,176.67,5.94]
[1729780894382,1.2608,176.75,176.67,5.94]
[1729780894987,2.8322,176.69,176.67,5.94]
[1729780896387,2.8321,176.7,176.67,5.94]
[1729780897380,2.832,176.7,176.67,5.94]
[1729780900791,2.8326,176.67,176.64,5.94]
[1729780902081,1.2608,176.75,176.64,5.94]
[1729780902281,2.8328,176.65,176.62,23.8789426]
[1729780902495,2.8328,176.65,176.62,5.94]
[1729780903294,23.8789426,176.73,176.62,5.94]
[1729780903492,2.8328,176.66,176.62,5.94]
[1729780904387,5.94,176.74,176.62,29.8189426]
[1729780904690,5.94,176.74,176.62,5.94]
[1729780904898,2.8327,176.66,176.62,5.94]
[1729780905495,2.8328,176.65,176.62,5.94]
[1729780905891,2.8328,176.65,176.62,5.64]
[1729780907297,2.8326,176.67,176.63,23.8789426]
[1729780907489,5.94,176.74,176.63,23.8789426]
[1729780908091,2.8324,176.68,176.63,26.7119426]
[1729780908292,2.8324,176.68,176.63,23.8789426]
[1729780908896,2.8324,176.68,176.64,2.833]
[1729780911387,6.9008,176.75,176.63,23.8789426]
[1729780911593,5.6628,176.74,176.62,5.64]
[1729780912089,2.8328,176.66,176.62,8.4732]
[1729780912495,23.8789426,176.73,176.6,23.8789426]
[1729780912796,23.8789426,176.73,176.6,29.5189426]
[1729780912992,2.833,176.64,176.6,32.3525426]
[1729780913399,1.2328,176.7,176.6,32.3525426]
[1729780913592,2.8332,176.63,176.6,29.5189426]
[1729780913787,2.8332,176.63,176.6,23.8789426]
[1729780914192,2.8332,176.63,176.6,26.7125426]
[1729780915695,1.2328,176.7,176.6,26.7125426]
[1729780916701,2.8325,176.67,176.6,26.7125426]
[1729780916999,6.8728,176.7,176.59,5.64]
[1729780917198,2.8331,176.64,176.59,5.64]
[1729780917394,6.8728,176.7,176.63,2.8331]
[1729780917702,6.8728,176.7,176.59,29.5189426]
[1729780917901,2.8327,176.66,176.59,29.5189426]
[1729780918093,6.8728,176.7,176.59,29.5189426]
[1729780918599,6.8728,176.7,176.6,2.8335]
[1729780918600,2.8329,176.65,176.6,2.8335]
[1729780919104,1.2328,176.7,176.6,2.8335]
[1729780919690,2.833,176.64,176.6,2.8335]
[1729780920096,2.8339,176.59,176.54,26.7134426]
[1729780920299,2.8339,176.59,176.55,1.41732828]
[1729780920493,1.2377,176.63,176.54,23.8789426]
[1729780920692,1.2377,176.63,176.55,6.43520798]
[1729780920894,1.2377,176.63,176.56,1.4173185]
[1729780921201,1.2377,176.63,176.54,23.8789426]
[1729780921403,1.2377,176.63,176.55,6.44085349]
[1729780921598,2.8335,176.61,176.57,2.834]
[1729780922204,2.8335,176.61,176.56,2.8341]
[1729780922401,2.8338,176.59,176.54,23.8789426]
[1729780922703,2.8338,176.59,176.55,6.44336788]
[1729780922906,2.8339,176.59,176.55,7.05719926]
[1729780923103,1.2377,176.63,176.56,1.41719926]
[1729780923298,1.2377,176.63,176.55,5.64]
[1729780923498,2.8339,176.59,176.55,5.64]
[1729780923906,2.8339,176.59,176.55,8.4744]
[1729780924095,2.8339,176.59,176.56,1.41741825]
[1729780924299,2.8339,176.59,176.55,8.4744]
[1729780924508,2.8339,176.59,176.56,1.41738723]
[1729780924806,2.8339,176.59,176.55,8.4744]
[1729780925002,2.8339,176.59,176.56,1.41740239]
[1729780925204,2.8339,176.59,176.55,8.4744]
[1729780925401,1.2377,176.63,176.55,5.64]
[1729780925601,1.2284,176.66,176.59,23.8789426]
[1729780926001,1.2284,176.66,176.56,23.8789426]
[1729780926201,2.8337,176.6,176.57,1.41724937]
[1729780926405,2.8337,176.6,176.56,26.7130426]
[1729780926595,2.8337,176.6,176.57,6.4380809]
[1729780926801,2.8337,176.6,176.58,1.41725162]
[1729780927113,2.8338,176.59,176.56,26.7130426]
[1729780927305,2.8338,176.59,176.57,1.41733261]
[1729780927512,2.8338,176.59,176.56,26.7130426]
[1729780927705,2.8338,176.59,176.57,1.41731423]
[1729780927902,2.8338,176.59,176.56,26.7130426]
[1729780928108,2.8338,176.59,176.57,1.41731286]
[1729780928308,2.8338,176.59,176.56,26.7130426]
[1729780928507,2.8338,176.59,176.57,1.4172966]
[1729780928809,2.8338,176.59,176.56,26.7130426]
[1729780929111,2.8338,176.59,176.57,1.41730523]
[1729780929307,2.8338,176.59,176.55,5.64]
[1729780929308,1.2284,176.66,176.55,5.64]
[1729780929509,2.8341,176.57,176.56,1.41734116]
[1729780929809,5.64,176.63,176.53,5.64]
[1729780930018,2.8344,176.56,176.54,1.41747105]
[1729780930210,1.1646,176.62,176.55,1.41747105]
[1729780930411,1.1646,176.62,176.53,5.64]
[1729780930711,1.1646,176.62,176.54,6.44509892]
[1729780931009,1.1646,176.62,176.56,23.8789426]
[1729780931409,1.2284,176.66,176.56,23.8789426]
[1729780931609,1.2284,176.66,176.58,23.8789426]
[1729780931816,1.1646,176.67,176.61,23.8789426]
[1729780932111,1.1646,176.67,176.59,7.05707968]
[1729780932112,1.1646,176.67,176.59,5.64]
[1729780933214,2.8329,176.65,176.59,5.64]
[1729780933405,1.1646,176.67,176.59,5.64]
[1729780934013,2.8335,176.61,176.59,5.64]
[1729780934506,2.8334,176.62,176.59,5.64]
[1729780935110,2.8331,176.64,176.59,8.4737]
[1729780935318,2.8331,176.64,176.6,1.41715512]
[1729780935614,2.8336,176.6,176.55,29.2989426]
[1729780935811,5.42,176.66,176.56,1.41718089]
[1729780936117,5.42,176.66,176.57,1.41718089]
[1729780936303,1.2475,176.65,176.54,5.42]
[1729780936505,1.2475,176.65,176.55,1.41732988]
[1729780936711,25.1264426,176.65,176.53,29.2989426]
[1729780936914,2.8343,176.56,176.54,1.41749808]
[1729780937137,2.8343,176.56,176.53,29.2989426]
[1729780937344,2.8343,176.56,176.54,1.41749999]
[1729780937646,2.8343,176.56,176.53,5.42]
[1729780937850,23.8789426,176.62,176.54,1.41752875]
[1729780938043,2.8344,176.55,176.5,32.1341426]
[1729780938249,2.8344,176.55,176.51,1.4176521]
[1729780938448,2.8344,176.55,176.52,1.4176521]
[1729780938747,2.8344,176.55,176.5,32.1341426]
[1729780939047,2.8344,176.55,176.51,1.4176521]
[1729780939245,1.2782,176.6,176.52,1.4176521]
[1729780939443,1.2782,176.6,176.49,61.08]
[1729780939636,23.8789426,176.58,176.5,1.41770008]
[1729780939835,2.8352,176.51,176.47,5.42]
[1729780940036,5.42,176.56,176.48,1.41797702]
[1729780940233,5.42,176.56,176.47,5.42]
[1729780940437,2.8352,176.51,176.48,1.4179515]
[1729780940636,2.8352,176.51,176.47,5.42]
[1729780940955,5.42,176.56,176.48,1.41794626]
[1729780941239,5.42,176.56,176.47,5.42]
[1729780941531,2.8352,176.51,176.47,5.42]
[1729780941725,5.42,176.56,176.45,8.256]
[1729780941925,5.42,176.56,176.46,1.41796969]
[1729780942228,2.8355,176.49,176.45,5.42]
[1729780942426,2.8355,176.49,176.46,1.41796943]
[1729780942626,2.8353,176.5,176.45,8.256]
[1729780942917,1.2764,176.57,176.46,25.29691229]
[1729780943115,1.2764,176.57,176.47,1.41796969]
[1729780943314,2.835,176.52,176.48,1.41796969]
[1729780943513,2.835,176.52,176.47,2.8356]
[1729780943710,2.8352,176.51,176.46,26.7148426]
[1729780943910,1.2764,176.57,176.47,1.41793189]
[1729780944121,1.2764,176.57,176.46,23.8789426]
[1729780944326,14.97014572,176.54,176.45,5.42]
[1729780944519,1.2764,176.57,176.49,14.97014572]
[1729780945224,2.8346,176.54,176.49,17.80544572]
[1729780945418,2.8346,176.54,176.5,1.41773407]
[1729780945618,2.8346,176.54,176.49,14.97014572]
[1729780945816,2.8343,176.56,176.51,14.97014572]
[1729780946021,1.2704,176.59,176.53,14.97014572]
[1729780946418,2.8342,176.57,176.52,29.37200566]
[1729780946617,5.42,176.65,176.55,23.95200566]
[1729780946822,2.382,176.65,176.58,23.95200566]
[1729780948126,2.382,176.65,176.57,5.42]
[1729780948629,2.8333,176.63,176.58,26.78580566]
[1729780948930,23.95200566,176.75,176.61,23.95200566]
[1729780949128,2.3244,176.71,176.61,23.95200566]
[1729780949975,2.3244,176.71,176.62,2.8332]
[1729780950133,2.3244,176.71,176.62,8.2532]
[1729780950331,2.3244,176.71,176.62,5.42]
[1729780950525,2.8326,176.67,176.62,5.42]
[1729780950829,2.3244,176.71,176.62,5.42]
[1729780951329,2.8325,176.68,176.62,8.2532]
[1729780951529,2.3244,176.71,176.62,5.42]
[1729780952330,2.62884366,176.98,176.62,5.42]
[1729780952331,5.6567,176.94,176.7,23.95200566]
[1729780952626,2.4152,176.89,176.78,23.95200566]
[1729780952831,2.81317429,176.88,176.79,5.42]
[1729780953034,2.8301,176.83,176.79,5.42]
[1729780955230,2.8307,176.79,176.73,23.95200566]
[1729780955422,23.95200566,176.86,176.74,5.42]
[1729780955624,1.1967,176.85,176.7,85.13200566]
[1729780955824,2.8309,176.78,176.71,8.2518]
[1729780956533,1.1967,176.85,176.71,8.2518]
[1729780956732,2.831,176.77,176.71,8.2518]
[1729780957233,5.42,176.84,176.7,61.18]
[1729780957234,23.95200566,176.83,176.7,61.18]
[1729780957438,23.95200566,176.83,176.71,5.42]
[1729780957638,23.95200566,176.83,176.67,23.95200566]
[1729780957843,23.95200566,176.83,176.71,5.42]
[1729780958444,2.8312,176.76,176.71,5.42]
[1729780958647,5.42,176.84,176.71,29.37200566]
[1729780959644,2.831,176.77,176.71,29.37200566]
[1729780960145,2.8313,176.75,176.71,5.42]
[1729780960341,23.95200566,176.83,176.71,5.42]
[1729780961240,2.8313,176.75,176.71,5.42]
[1729780962535,2.8306,176.79,176.71,5.42]
[1729780962736,2.4343,176.78,176.71,5.42]
[1729780963246,2.8312,176.75,176.69,2.832]
[1729780963449,2.8312,176.75,176.71,5.42]
[1729780963745,2.4343,176.78,176.71,5.42]
[1729780963942,2.4343,176.78,176.71,29.37200566]
[1729780964642,5.42,176.82,176.71,29.37200566]
[1729780965037,2.4364,176.84,176.71,29.37200566]
[1729780965238,2.8308,176.78,176.72,2.8316]
[1729780965447,2.8308,176.78,176.71,29.37200566]
[1729780965751,2.8308,176.78,176.73,2.8315]
[1729780966447,2.8307,176.78,176.73,2.8315]
[1729780966653,2.4364,176.84,176.74,23.95200566]
[1729780967043,2.4364,176.84,176.77,23.95200566]
[1729780967253,1.2055,176.84,176.78,5.32]
[1729780967642,2.83,176.83,176.78,8.1507]
[1729780967846,1.2055,176.84,176.77,23.95200566]
[1729780968147,1.2055,176.84,176.77,5.32]
[1729780968447,1.2055,176.84,176.64,2.85878381]
[1729780968448,30.47750566,176.84,176.64,2.85878381]
[1729780968646,30.47750566,176.84,176.69,23.95200566]
[1729780968647,2.8312,176.76,176.69,23.95200566]
[1729780968847,1.2282,176.83,176.7,5.32]
[1729780969253,2.831,176.77,176.71,2.8318]
[1729780969445,6.5482,176.83,176.71,2.8318]
[1729780969847,2.8311,176.76,176.7,8.152]
[1729780970054,6.5482,176.83,176.7,5.32]
[1729780970444,6.5482,176.83,176.7,8.1519]
[1729780971051,2.8312,176.76,176.7,8.1519]
[1729780971255,6.5482,176.83,176.7,5.32]
[1729780971451,2.8304,176.8,176.73,2.8315]
[1729780971649,6.5482,176.83,176.72,23.95200566]
[1729780972056,2.8309,176.77,176.72,26.78360566]
[1729780972249,26.78728485,176.81,176.7,5.32]
[1729780972552,2.8313,176.75,176.7,5.32]
[1729780973148,23.95200566,176.79,176.64,0.4803]
[1729780973353,23.95200566,176.79,176.67,5.32]
[1729780973551,5.32,176.78,176.67,5.32]
[1729780973853,2.8317,176.73,176.67,8.1524]
[1729780974748,2.8317,176.72,176.67,8.1524]
[1729780975348,2.8319,176.71,176.67,8.1524]
[1729780975547,5.32,176.78,176.67,5.32]
[1729780976145,5.32,176.78,176.64,0.4803]
[1729780976146,5.32,176.78,176.64,2.8328]
[1729780976346,23.95200566,176.76,176.65,5.32]
[1729780976750,2.4521,176.75,176.65,5.32]
[1729780977355,2.8323,176.69,176.65,5.32]
[1729780977754,2.4521,176.75,176.65,5.32]
[1729780977949,2.8326,176.67,176.64,5.32]
[1729780978256,2.8326,176.67,176.63,5.32]
[1729780978654,2.8326,176.67,176.62,2.8333]
[1729780978959,2.8326,176.67,176.63,5.32]
[1729780979357,2.4521,176.75,176.64,2.833]
[1729780979965,7.7721,176.75,176.64,2.833]
[1729780980154,7.7721,176.75,176.63,8.1531]
[1729780981354,2.8323,176.69,176.63,8.1531]
[1729780982060,2.8323,176.69,176.64,2.833]
[1729780982368,2.8324,176.68,176.63,5.32]
[1729780982758,2.8324,176.68,176.63,8.1531]
[1729780983259,7.7721,176.75,176.63,8.1531]
[1729780984066,7.7721,176.75,176.63,5.32]
[1729780984257,23.95200566,176.7,176.57,5.32]
[1729780984562,2.8338,176.6,176.55,2.8344]
[1729780984761,5.32,176.66,176.55,5.32]
[1729780984961,2.8339,176.59,176.55,5.32]
[1729780985162,2.8339,176.59,176.55,8.1544]
[1729780985362,7.7199,176.66,176.55,5.32]
[1729780985863,23.95200566,176.64,176.48,85.09200566]
[1729780986068,23.95200566,176.61,176.49,5.32]
[1729780986367,6.5462,176.6,176.49,5.32]
[1729780986663,2.8346,176.54,176.48,29.27200566]
[1729780986864,2.8346,176.54,176.48,32.10750566]
[1729780987060,2.8348,176.53,176.48,8.1555]
[1729780987267,6.5462,176.6,176.48,5.32]
[1729780987658,1.2262,176.6,176.5,23.95200566]
[1729780989660,1.2262,176.6,176.5,26.78720566]
[1729780989962,1.2262,176.6,176.5,2.8352]
[1729780990165,1.2262,176.6,176.49,2.8353]
[1729780990166,2.8346,176.54,176.49,2.8353]
[1729780990764,2.8346,176.54,176.5,2.8352]